bitfinex/quotes_SOLUSD_20230702
["timestamp","ask_amount","ask_price","bid_price","bid_amount"]
[1688269627804,186.593,18.752,18.739,55.0]
[1688269628008,186.593,18.752,18.741,22.57]
[1688269628201,186.593,18.752,18.742,55.0]
[1688269628402,186.593,18.752,18.739,22.572]
[1688269630111,186.593,18.752,18.74,55.0]
[1688269631903,186.593,18.752,18.736,22.576]
[1688269633515,186.593,18.752,18.737,55.0]
[1688269634218,22.557,18.752,18.737,88.41219922]
[1688269634708,22.557,18.752,18.742,22.569]
[1688269634907,22.557,18.752,18.745,22.565]
[1688269635114,22.557,18.752,18.746,77.563]
[1688269637097,22.557,18.752,18.746,55.0]
[1688269637710,22.557,18.752,18.746,77.564]
[1688269640317,58.049,18.76,18.746,77.564]
[1688269640522,22.557,18.753,18.746,77.564]
[1688269642127,22.557,18.753,18.746,55.0]
[1688269642414,80.627,18.753,18.742,114.0617]
[1688269642825,22.557,18.753,18.742,114.0617]
[1688269643330,26.25187328,18.761,18.742,124.89889922]
[1688269643510,26.25187328,18.761,18.743,65.83719922]
[1688269643707,22.554,18.755,18.748,22.561]
[1688269644019,22.554,18.755,18.744,58.096]
[1688269644020,22.554,18.755,18.75,22.559]
[1688269644218,22.554,18.755,18.751,55.0]
[1688269646422,80.618,18.755,18.738,58.116]
[1688269646718,80.618,18.755,18.744,22.566]
[1688269648024,80.618,18.755,18.745,55.0]
[1688269648230,80.618,18.755,18.745,77.564]
[1688269651121,22.554,18.755,18.745,77.564]
[1688269653810,22.554,18.755,18.736,81.57262726]
[1688269653811,80.618,18.755,18.736,55.0]
[1688269654025,20.0,18.754,18.739,22.572]
[1688269654217,80.641,18.75,18.735,22.577]
[1688269654423,90.821,18.75,18.732,98.1888]
[1688269654633,75.0,18.749,18.73,26.24840955]
[1688269654932,186.679,18.744,18.73,26.24840955]
[1688269655233,7.92875689,18.743,18.726,22.588]
[1688269655531,80.691,18.738,18.726,22.588]
[1688269656119,80.691,18.738,18.727,55.0]
[1688269656425,80.691,18.738,18.727,77.587]
[1688269657130,80.691,18.738,18.721,10.83719922]
[1688269657337,80.691,18.738,18.722,20.0]
[1688269657512,80.691,18.738,18.723,22.591]
[1688269657915,80.691,18.738,18.721,33.43119922]
[1688269658128,87.30644,18.737,18.717,22.598]
[1688269658429,87.30644,18.737,18.718,22.597]
[1688269658430,80.72,18.731,18.718,22.597]
[1688269659011,80.72,18.731,18.713,10.83719922]
[1688269659210,88.64875689,18.731,18.713,10.83719922]
[1688269659629,88.64875689,18.731,18.713,33.44119922]
[1688269659815,88.64875689,18.731,18.713,10.83719922]
[1688269660017,88.64875689,18.731,18.702,58.227]
[1688269660018,105.41519689,18.73,18.702,58.227]
[1688269660327,186.896,18.722,18.707,22.61]
[1688269661913,186.896,18.722,18.709,22.608]
[1688269663418,186.896,18.722,18.707,22.61]
[1688269663625,186.896,18.722,18.708,55.0]
[1688269664638,186.896,18.722,18.708,77.61]
[1688269665832,186.896,18.722,18.703,10.83719922]
[1688269666040,55.0,18.721,18.703,10.83719922]
[1688269666332,55.0,18.721,18.703,33.45319922]
[1688269666333,186.955,18.716,18.703,33.45319922]
[1688269666827,80.787,18.716,18.703,10.83719922]
[1688269667234,80.787,18.716,18.698,49.5363911]
[1688269667427,80.787,18.716,18.7,22.619]
[1688269667630,80.787,18.716,18.703,22.616]
[1688269668027,80.787,18.716,18.704,55.0]
[1688269668226,80.787,18.716,18.704,77.614]
[1688269669936,80.787,18.716,18.704,55.0]
[1688269670238,80.787,18.716,18.701,22.618]
[1688269670439,80.787,18.716,18.702,20.0]
[1688269671137,80.787,18.716,18.7,22.619]
[1688269671339,20.0,18.715,18.698,22.621]
[1688269671524,20.0,18.715,18.692,256.085]
[1688269671525,80.812,18.71,18.699,22.621]
[1688269672035,80.812,18.71,18.694,10.83719922]
[1688269672238,80.812,18.71,18.699,22.621]
[1688269673142,80.812,18.71,18.694,69.08819922]
[1688269674020,80.812,18.71,18.694,10.83719922]
[1688269674226,101.122,18.71,18.692,22.629]
[1688269674521,62.92875689,18.709,18.689,22.633]
[1688269674736,187.08,18.703,18.69,20.0]
[1688269674941,187.08,18.703,18.69,42.631]
[1688269675242,187.08,18.703,18.685,22.638]
[1688269675448,20.31,18.7,18.675,58.311]
[1688269675634,20.31,18.7,18.678,52.646]
[1688269675635,187.178,18.694,18.678,52.646]
[1688269676340,80.884,18.694,18.678,52.646]
[1688269676543,22.628,18.694,18.678,52.646]
[1688269676745,22.628,18.694,18.679,20.0]
[1688269677041,22.628,18.694,18.683,22.64]
[1688269677242,22.628,18.694,18.681,22.642]
[1688269677441,22.628,18.694,18.682,20.0]
[1688269677829,22.628,18.694,18.68,20.0]
[1688269678127,22.628,18.694,18.67,437.51]
[1688269678128,22.628,18.694,18.67,20.28]
[1688269678326,187.244,18.687,18.672,22.653]
[1688269678737,80.912,18.687,18.677,22.647]
[1688269678949,80.912,18.687,18.673,10.83719922]
[1688269679126,80.912,18.687,18.673,33.48919922]
[1688269679325,80.912,18.687,18.664,58.345]
[1688269679527,80.912,18.687,18.665,50.0]
[1688269679740,80.912,18.687,18.67,43.075]
[1688269679928,80.912,18.687,18.671,20.0]
[1688269680247,22.636,18.687,18.675,22.649]
[1688269680743,22.636,18.687,18.676,55.0]
[1688269680940,22.636,18.687,18.677,22.647]
[1688269681146,22.636,18.687,18.678,55.0]
[1688269681443,22.636,18.687,18.677,22.647]
[1688269681940,22.636,18.687,18.675,22.649]
[1688269682125,22.636,18.687,18.671,10.83719922]
[1688269682126,22.636,18.687,18.672,22.654]
[1688269682326,20.0,18.686,18.657,58.367]
[1688269682559,20.0,18.686,18.66,22.667]
[1688269682560,207.737,18.68,18.66,22.667]
[1688269682738,207.737,18.68,18.65,40.93]
[1688269682739,228.127,18.68,18.653,10.83719922]
[1688269682929,228.127,18.68,18.64,20.53]
[1688269682930,40.7,18.67,18.64,20.33]
[1688269683236,187.438,18.668,18.646,22.685]
[1688269683440,187.438,18.668,18.65,20.42]
[1688269683743,187.438,18.668,18.655,22.674]
[1688269683926,187.438,18.668,18.65,20.42]
[1688269683927,187.438,18.668,18.653,22.676]
[1688269684250,187.438,18.668,18.642,22.69]
[1688269684433,187.438,18.668,18.63,20.5]
[1688269684434,20.27,18.66,18.643,22.689]
[1688269684637,22.675,18.655,18.643,22.689]
[1688269685236,22.675,18.655,18.638,22.69]
[1688269685440,20.0,18.654,18.63,20.28]
[1688269685639,187.644,18.647,18.63,22.704]
[1688269685836,22.684,18.647,18.63,22.704]
[1688269686038,58.367,18.658,18.63,35.994]
[1688269686345,106.483,18.661,18.63,35.994]
[1688269686346,22.674,18.656,18.644,22.687]
[1688269686851,81.046,18.656,18.644,22.687]
[1688269687437,22.674,18.656,18.644,22.687]
[1688269687744,10.29,18.67,18.644,22.687]
[1688269687942,95.9813,18.679,18.65,10.24]
[1688269688133,22.655,18.672,18.659,81.03]
[1688269688335,22.657,18.67,18.659,81.03]
[1688269688654,187.412,18.67,18.651,22.679]
[1688269688952,197.702,18.67,18.651,22.679]
[1688269689137,197.702,18.67,18.65,20.187]
[1688269689138,187.412,18.67,18.654,22.676]
[1688269689333,187.412,18.67,18.655,77.674]
[1688269689539,80.985,18.67,18.656,55.0]
[1688269689732,80.985,18.67,18.652,55.0]
[1688269689733,80.985,18.67,18.64,10.27]
[1688269689947,80.985,18.67,18.649,58.392]
[1688269690156,80.985,18.67,18.656,22.673]
[1688269690666,80.985,18.67,18.657,55.0]
[1688269690955,80.985,18.67,18.659,22.669]
[1688269691149,80.985,18.67,18.661,22.667]
[1688269691652,80.985,18.67,18.662,55.0]
[1688269692157,80.985,18.67,18.652,58.384]
[1688269692450,80.985,18.67,18.652,22.677]
[1688269693033,22.657,18.67,18.658,81.037]
[1688269693234,22.657,18.67,18.655,106.509]
[1688269693553,80.985,18.67,18.658,22.67]
[1688269693951,80.985,18.67,18.656,22.672]
[1688269694260,80.985,18.67,18.657,55.0]
[1688269694550,80.985,18.67,18.657,22.672]
[1688269694946,22.657,18.67,18.657,81.041]
[1688269695156,22.653,18.673,18.657,81.041]
[1688269695359,22.655,18.672,18.663,22.664]
[1688269695736,22.655,18.672,18.664,77.663]
[1688269696344,22.655,18.672,18.664,55.0]
[1688269696557,22.655,18.672,18.663,55.0]
[1688269697461,22.655,18.672,18.663,77.665]
[1688269697644,106.381,18.679,18.663,77.665]
[1688269697645,58.299,18.68,18.663,136.015]
[1688269697843,22.65,18.676,18.663,77.665]
[1688269698052,22.65,18.676,18.657,58.368]
[1688269698355,20.0,18.675,18.649,58.392]
[1688269698661,20.0,18.675,18.653,22.676]
[1688269698662,187.44,18.668,18.653,22.676]
[1688269698958,22.665,18.663,18.653,22.676]
[1688269699159,22.669,18.66,18.653,22.676]
[1688269699463,42.667,18.662,18.653,22.676]
[1688269699753,22.664,18.664,18.653,22.676]
[1688269699946,22.662,18.665,18.657,22.672]
[1688269700141,22.662,18.665,18.652,58.384]
[1688269700358,107.252345,18.677,18.658,22.67]
[1688269700359,58.317,18.674,18.658,22.67]
[1688269700661,22.66,18.667,18.658,22.67]
[1688269701057,22.66,18.667,18.651,98.3849]
[1688269701357,22.66,18.667,18.652,20.0]
[1688269701739,187.494,18.662,18.652,20.0]
[1688269701935,187.494,18.662,18.651,20.0]
[1688269702756,22.666,18.662,18.651,42.678]
[1688269703055,22.664,18.664,18.655,22.674]
[1688269703362,22.664,18.664,18.656,55.0]
[1688269703541,164.768,18.671,18.656,55.0]
[1688269703542,22.662,18.666,18.658,22.67]
[1688269703858,22.659,18.668,18.659,55.0]
[1688269704044,22.659,18.668,18.661,22.666]
[1688269704244,22.659,18.668,18.662,55.0]
[1688269704561,22.659,18.668,18.662,77.665]
[1688269705559,22.659,18.668,18.654,91.9703]
[1688269705864,22.659,18.668,18.656,22.673]
[1688269708051,58.321,18.677,18.657,55.0]
[1688269708255,58.321,18.677,18.663,22.665]
[1688269708256,22.655,18.671,18.663,22.665]
[1688269708551,22.655,18.671,18.664,55.0]
[1688269708743,22.655,18.671,18.657,55.0]
[1688269708944,22.655,18.671,18.658,20.0]
[1688269709164,22.655,18.671,18.661,22.666]
[1688269709463,22.655,18.671,18.657,55.0]
[1688269710557,22.655,18.671,18.66,22.668]
[1688269710763,22.655,18.671,18.661,75.0]
[1688269710946,22.655,18.671,18.664,22.663]
[1688269711255,22.655,18.671,18.665,55.0]
[1688269711460,22.655,18.671,18.665,22.662]
[1688269711862,22.655,18.671,18.656,22.673]
[1688269712057,22.655,18.671,18.652,58.382]
[1688269712251,91.0171,18.67,18.654,22.675]
[1688269712450,81.005,18.666,18.654,22.675]
[1688269712848,22.662,18.666,18.654,22.675]
[1688269713260,22.659,18.668,18.654,22.675]
[1688269713561,22.657,18.67,18.659,81.03]
[1688269713765,22.657,18.67,18.662,22.665]
[1688269714146,22.657,18.67,18.658,58.363]
[1688269714342,80.985,18.67,18.656,22.672]
[1688269715761,80.985,18.67,18.658,22.67]
[1688269715960,80.985,18.67,18.659,55.0]
[1688269716549,80.985,18.67,18.659,77.669]
[1688269716862,22.657,18.67,18.659,76.169]
[1688269717069,22.657,18.67,18.659,70.51895814]
[1688269717254,10.29,18.69,18.66,30.29]
[1688269717255,58.292,18.682,18.66,30.29]
[1688269717448,22.65,18.676,18.665,58.341]
[1688269717859,10.33,18.7,18.666,20.0]
[1688269718165,22.645,18.68,18.669,22.657]
[1688269718469,22.645,18.68,18.67,20.0]
[1688269718766,22.645,18.68,18.673,22.653]
[1688269718965,22.645,18.68,18.665,58.344]
[1688269719162,22.645,18.68,18.669,22.656]
[1688269719668,22.645,18.68,18.67,55.0]
[1688269719967,22.643,18.682,18.673,22.653]
[1688269720147,22.643,18.682,18.676,22.648]
[1688269720546,22.643,18.682,18.677,55.0]
[1688269721071,22.643,18.682,18.671,22.654]
[1688269721254,22.643,18.682,18.672,55.0]
[1688269721650,22.643,18.682,18.671,55.0]
[1688269722256,22.643,18.682,18.67,22.656]
[1688269722457,22.643,18.682,18.671,20.0]
[1688269722657,22.643,18.682,18.671,42.654]
[1688269723475,22.643,18.682,18.672,55.0]
[1688269723771,22.643,18.682,18.675,22.65]
[1688269723970,22.643,18.682,18.676,55.0]
[1688269724270,22.643,18.682,18.674,22.651]
[1688269724569,22.643,18.682,18.675,55.0]
[1688269725173,22.64,18.684,18.675,77.65]
[1688269726167,201.532,18.694,18.675,77.65]
[1688269726368,22.634,18.689,18.675,77.65]
[1688269727172,22.634,18.689,18.675,55.0]
[1688269727372,22.634,18.689,18.674,77.651]
[1688269727587,22.634,18.689,18.671,118.6224]
[1688269728073,22.634,18.689,18.672,22.653]
[1688269729175,22.634,18.689,18.677,22.648]
[1688269729494,22.634,18.689,18.678,55.0]
[1688269729768,22.634,18.689,18.678,77.646]
[1688269732483,22.634,18.689,18.678,55.0]
[1688269732657,22.634,18.689,18.678,77.646]
[1688269734373,22.634,18.689,18.676,22.648]
[1688269734580,22.634,18.689,18.674,22.65]
[1688269736778,22.634,18.689,18.675,55.0]
[1688269737081,22.634,18.689,18.676,22.648]
[1688269737257,22.634,18.689,18.677,77.647]
[1688269737456,22.634,18.689,18.678,55.0]
[1688269738463,22.634,18.689,18.678,77.646]
[1688269739783,22.634,18.689,18.679,20.0]
[1688269740082,58.248,18.696,18.682,22.642]
[1688269740083,22.632,18.691,18.682,22.642]
[1688269740271,22.632,18.691,18.683,55.0]
[1688269740480,95.9985,18.703,18.685,22.637]
[1688269740481,58.236,18.7,18.685,22.637]
[1688269740772,22.619,18.702,18.686,55.0]
[1688269740975,22.619,18.702,18.69,80.894]
[1688269741174,22.619,18.702,18.69,22.631]
[1688269741976,22.619,18.702,18.694,22.627]
[1688269742377,58.224,18.71,18.697,22.623]
[1688269742682,58.194,18.713,18.7,22.619]
[1688269742980,22.609,18.71,18.7,22.619]
[1688269743180,22.609,18.71,18.702,22.616]
[1688269743377,22.603,18.714,18.705,22.614]
[1688269743568,22.602,18.715,18.71,22.607]
[1688269743966,22.599,18.717,18.711,55.0]
[1688269744171,22.598,18.719,18.712,22.605]
[1688269744376,22.599,18.718,18.713,77.603]
[1688269744575,22.599,18.718,18.714,55.0]
[1688269744775,22.599,18.718,18.708,58.208]
[1688269744961,22.599,18.718,18.709,55.0]
[1688269745164,22.591,18.724,18.712,22.605]
[1688269745363,22.591,18.724,18.709,55.0]
[1688269745364,22.592,18.724,18.716,22.6]
[1688269745580,22.592,18.724,18.719,22.597]
[1688269745780,22.592,18.724,18.718,22.598]
[1688269745972,22.592,18.724,18.71,10.83719922]
[1688269745973,22.592,18.724,18.711,58.2]
[1688269746162,22.592,18.724,18.713,22.604]
[1688269746564,22.592,18.724,18.714,22.602]
[1688269746978,22.592,18.724,18.717,22.598]
[1688269747185,22.592,18.724,18.718,55.0]
[1688269747361,58.136,18.732,18.718,22.598]
[1688269747573,58.136,18.732,18.719,55.0]
[1688269747889,22.584,18.73,18.722,22.592]
[1688269748188,22.584,18.73,18.724,22.59]
[1688269748484,22.583,18.731,18.725,55.0]
[1688269748668,22.583,18.731,18.725,77.589]
[1688269748986,80.721,18.731,18.719,22.596]
[1688269749170,80.721,18.731,18.716,22.6]
[1688269749380,80.721,18.731,18.717,22.599]
[1688269750266,164.137,18.741,18.72,10.29]
[1688269750468,598.9,18.761,18.72,10.29]
[1688269750469,22.569,18.743,18.725,186.857]
[1688269750680,22.566,18.745,18.736,22.576]
[1688269751173,22.564,18.747,18.737,55.0]
[1688269751370,10.29,18.77,18.74,22.572]
[1688269751569,10.29,18.77,18.741,55.0]
[1688269751570,22.55,18.758,18.741,55.0]
[1688269751772,22.55,18.758,18.749,22.56]
[1688269751983,22.55,18.758,18.75,55.0]
[1688269752282,22.548,18.76,18.751,22.558]
[1688269752478,22.542,18.765,18.752,75.0]
[1688269752676,105.846,18.773,18.758,22.549]
[1688269752677,22.543,18.764,18.758,22.549]
[1688269752878,22.543,18.764,18.759,55.0]
[1688269753188,58.012,18.772,18.759,77.548]
[1688269753484,58.002,18.776,18.759,77.548]
[1688269753678,77.548,18.777,18.759,77.548]
[1688269753989,22.531,18.775,18.76,10.29]
[1688269754185,163.787,18.781,18.76,10.29]
[1688269754186,22.528,18.777,18.764,80.578]
[1688269754370,105.778,18.785,18.764,80.578]
[1688269754371,57.975,18.784,18.764,80.578]
[1688269754570,57.975,18.784,18.765,55.0]
[1688269754769,22.526,18.778,18.77,22.535]
[1688269755086,22.526,18.778,18.765,55.0]
[1688269755469,22.526,18.778,18.764,55.0]
[1688269755677,80.519,18.778,18.764,22.542]
[1688269756078,80.519,18.778,18.765,55.0]
[1688269756790,80.519,18.778,18.765,77.541]
[1688269757266,80.519,18.778,18.753,58.068]
[1688269757664,80.519,18.778,18.749,105.978]
[1688269757665,80.519,18.778,18.76,10.24]
[1688269757869,22.526,18.778,18.766,22.54]
[1688269758070,22.523,18.781,18.766,22.54]
[1688269758372,1.44750559,18.805,18.779,22.525]
[1688269758573,22.503,18.798,18.78,65.27]
[1688269758872,22.503,18.798,18.785,22.517]
[1688269759073,22.503,18.798,18.78,65.27]
[1688269759074,22.503,18.798,18.788,22.514]
[1688269759277,22.503,18.798,18.786,55.0]
[1688269759278,22.503,18.798,18.791,22.51]
[1688269759467,22.503,18.798,18.792,55.0]
[1688269760075,22.503,18.798,18.791,55.0]
[1688269762177,22.503,18.798,18.789,22.512]
[1688269762178,22.503,18.798,18.79,55.0]
[1688269763791,22.503,18.798,18.775,58.0]
[1688269763978,20.0,18.797,18.775,58.0]
[1688269764189,22.511,18.791,18.781,22.522]
[1688269765697,57.936,18.797,18.781,22.522]
[1688269765890,57.911,18.805,18.781,80.506]
[1688269766086,10.12,18.82,18.782,12.31632]
[1688269766286,102.73032183,18.824,18.793,80.452]
[1688269766287,105.621,18.813,18.793,80.452]
[1688269766592,105.621,18.813,18.794,55.0]
[1688269766593,22.49,18.809,18.794,55.0]
[1688269766797,22.487,18.811,18.798,22.501]
[1688269767100,22.487,18.811,18.802,22.496]
[1688269767391,22.487,18.811,18.805,22.493]
[1688269767597,22.487,18.811,18.78,10.12]
[1688269767776,22.487,18.811,18.789,22.512]
[1688269767777,20.0,18.81,18.789,22.512]
[1688269767977,186.079,18.804,18.787,22.514]
[1688269768295,80.409,18.804,18.787,80.479]
[1688269768476,22.495,18.804,18.788,20.0]
[1688269768683,22.495,18.804,18.792,22.508]
[1688269768975,22.495,18.804,18.793,55.0]
[1688269769178,22.495,18.804,18.796,22.504]
[1688269769379,22.495,18.804,18.783,57.977]
[1688269770098,22.495,18.804,18.786,22.515]
[1688269770591,80.434,18.798,18.786,22.515]
[1688269770797,22.502,18.798,18.787,55.0]
[1688269771093,22.501,18.8,18.79,22.511]
[1688269771295,22.498,18.801,18.791,55.0]
[1688269771591,22.498,18.801,18.794,22.507]
[1688269771793,22.498,18.801,18.796,22.504]
[1688269771997,22.498,18.801,18.795,55.0]
[1688269771998,22.498,18.801,18.797,55.0]
[1688269772178,22.498,18.801,18.792,22.509]
[1688269772496,22.498,18.801,18.792,33.34619922]
[1688269773489,22.498,18.801,18.794,22.506]
[1688269773674,22.498,18.801,18.793,55.0]
[1688269773675,22.498,18.801,18.795,77.505]
[1688269773880,22.498,18.801,18.795,22.505]
[1688269774187,22.498,18.801,18.796,77.504]
[1688269774391,22.498,18.801,18.796,55.0]
[1688269774582,22.498,18.801,18.795,55.0]
[1688269774983,10.04,18.82,18.795,55.0]
[1688269774984,22.497,18.803,18.795,77.505]
[1688269775184,22.497,18.803,18.795,88.34219922]
[1688269775389,22.497,18.803,18.796,10.83719922]
[1688269775584,22.497,18.803,18.798,22.502]
[1688269775785,22.497,18.803,18.799,55.0]
[1688269776796,22.497,18.803,18.794,22.506]
[1688269776997,128.171,18.803,18.783,57.977]
[1688269777297,55.0,18.808,18.782,10.83719922]
[1688269777298,186.151,18.797,18.782,10.83719922]
[1688269777482,20.0,18.802,18.771,42.14014293]
[1688269777483,186.227,18.789,18.776,22.528]
[1688269777683,186.227,18.789,18.773,30.0]
[1688269778097,186.227,18.789,18.773,22.532]
[1688269778496,186.227,18.789,18.773,33.36919922]
[1688269778791,186.227,18.789,18.774,10.83719922]
[1688269778999,80.473,18.789,18.778,22.525]
[1688269779389,22.513,18.789,18.778,22.525]
[1688269779696,80.472,18.789,18.778,10.83719922]
[1688269779904,80.472,18.789,18.771,22.532]
[1688269780386,80.472,18.789,18.771,22.534]
[1688269780788,80.472,18.789,18.772,20.0]
[1688269780988,80.472,18.789,18.777,22.527]
[1688269781495,80.472,18.789,18.778,55.0]
[1688269783694,80.472,18.789,18.776,22.527]
[1688269784697,22.513,18.789,18.776,22.527]
[1688269784912,10.1,18.81,18.777,20.0]
[1688269785108,22.507,18.794,18.786,22.516]
[1688269785292,22.507,18.794,18.787,55.0]
[1688269785497,22.507,18.794,18.789,22.513]
[1688269785810,22.507,18.794,18.79,77.511]
[1688269785993,22.507,18.794,18.791,55.0]
[1688269786190,22.507,18.794,18.787,55.0]
[1688269786589,22.507,18.794,18.786,55.0]
[1688269787197,22.507,18.794,18.786,77.516]
[1688269789193,22.506,18.795,18.786,77.516]
[1688269789394,57.917,18.803,18.786,77.516]
[1688269789907,20.0,18.802,18.786,77.516]
[1688269790105,105.655,18.807,18.786,77.516]
[1688269790319,90.1854,18.819,18.786,77.516]
[1688269790320,22.493,18.806,18.786,77.516]
[1688269790609,22.493,18.806,18.787,20.0]
[1688269790610,80.4,18.806,18.787,20.0]
[1688269790913,80.4,18.806,18.78,10.12]
[1688269790914,20.0,18.805,18.784,22.518]
[1688269791090,186.128,18.799,18.784,22.518]
[1688269791599,80.43,18.799,18.784,22.518]
[1688269792214,80.43,18.799,18.789,22.512]
[1688269792396,80.43,18.799,18.79,55.0]
[1688269792800,22.501,18.799,18.79,77.511]
[1688269793390,22.501,18.799,18.791,20.0]
[1688269793594,22.501,18.799,18.793,22.507]
[1688269793791,22.501,18.799,18.794,55.0]
[1688269794011,22.501,18.799,18.794,77.507]
[1688269794207,22.501,18.799,18.794,55.0]
[1688269795206,22.501,18.799,18.793,77.508]
[1688269796511,22.501,18.799,18.793,55.0]
[1688269796717,22.501,18.799,18.792,55.0]
[1688269797399,22.501,18.799,18.793,22.507]
[1688269797602,22.501,18.799,18.794,55.0]
[1688269797812,22.501,18.799,18.794,77.506]
[1688269798110,22.495,18.804,18.794,77.506]
[1688269798417,57.898,18.809,18.794,77.506]
[1688269798418,22.494,18.805,18.794,77.506]
[1688269798617,22.492,18.807,18.794,88.34319922]
[1688269798798,22.491,18.807,18.794,88.34319922]
[1688269799204,22.491,18.807,18.794,22.506]
[1688269799705,22.491,18.807,18.792,116.57219922]
[1688269799706,22.491,18.807,18.798,22.501]
[1688269800515,22.491,18.807,18.801,22.498]
[1688269800824,22.491,18.807,18.802,55.0]
[1688269801423,57.882,18.814,18.803,22.495]
[1688269801611,22.487,18.811,18.806,22.492]
[1688269801808,10.12,18.83,18.806,22.492]
[1688269802016,262.01848706,18.854,18.806,22.492]
[1688269802017,22.482,18.815,18.809,22.488]
[1688269802220,57.861,18.821,18.811,22.486]
[1688269802424,22.474,18.821,18.807,55.0]
[1688269802721,22.474,18.821,18.812,55.0]
[1688269802927,22.474,18.821,18.808,10.83719922]
[1688269803217,22.474,18.821,18.809,55.0]
[1688269803624,22.474,18.821,18.812,22.485]
[1688269803922,57.834,18.83,18.816,22.48]
[1688269804126,22.464,18.83,18.816,185.957]
[1688269804335,22.464,18.83,18.817,55.0]
[1688269804630,80.297,18.83,18.819,22.476]
[1688269804829,80.297,18.83,18.821,22.474]
[1688269805030,80.297,18.83,18.822,55.0]
[1688269805327,80.297,18.83,18.813,10.83719922]
[1688269805518,80.297,18.83,18.82,22.475]
[1688269805723,80.297,18.83,18.821,55.0]
[1688269805917,80.297,18.83,18.818,22.477]
[1688269806118,80.297,18.83,18.822,22.473]
[1688269806312,22.464,18.83,18.822,22.473]
[1688269806627,22.464,18.83,18.814,55.0]
[1688269806628,57.801,18.841,18.825,22.47]
[1688269806928,105.449,18.844,18.829,22.464]
[1688269806929,22.454,18.839,18.829,22.464]
[1688269807127,8.00200285,18.851,18.833,22.46]